﻿DEPARTMENT FAMILY,ENTITY,Date,Expense Type,Expense Area,Supplier,Transaction number,Amount,Description
DEPARTMENT OF HEALTH,BLACKPOOL TEACHING HOSPITALS NHS FT ,Nov-22,Contractual Clinical Services,Contractual Clinical Services,4 Ways Healthcare Ltd,4WHC06233571,"31,597.07",CT Scanner 
DEPARTMENT OF HEALTH,BLACKPOOL TEACHING HOSPITALS NHS FT ,Nov-22,Facilities Management ,HARD FM ,Atlas BFW Management Ltd,1710000614,"7,132,943.83",Facilities Management Contract
DEPARTMENT OF HEALTH,BLACKPOOL TEACHING HOSPITALS NHS FT ,Nov-22,Contractual Clinical Services,Ultrasound,Atlas Diagnostics Limited,#BVH-ATL-1022,"28,735.00",Contractual Clinical Services
DEPARTMENT OF HEALTH,BLACKPOOL TEACHING HOSPITALS NHS FT ,Nov-22,Contractual Clinical Services,Contractual Clinical Services,Beckman Coulter (UK) Ltd,1538900,"34,587.83",Laboratory Reagents
DEPARTMENT OF HEALTH,BLACKPOOL TEACHING HOSPITALS NHS FT ,Nov-22,Contractual Clinical Services,Contractual Clinical Services,Beckman Coulter (UK) Ltd,1538901,"36,234.97",Laboratory Reagents
DEPARTMENT OF HEALTH,BLACKPOOL TEACHING HOSPITALS NHS FT ,Nov-22,Contractual Clinical Services,Contractual Clinical Services,Beckman Coulter (UK) Ltd,1538953,"35,805.59",Laboratory Reagents
DEPARTMENT OF HEALTH,BLACKPOOL TEACHING HOSPITALS NHS FT ,Nov-22,Contractual Clinical Services,Contractual Clinical Services,Beckman Coulter (UK) Ltd,1538903,"28,264.61",Laboratory Reagents
DEPARTMENT OF HEALTH,BLACKPOOL TEACHING HOSPITALS NHS FT ,Nov-22,Facilities Management ,Ict Telecommunications,Bt Global Services,0790354777,"41,589.05",Telephone Rental and Call Charges
DEPARTMENT OF HEALTH,BLACKPOOL TEACHING HOSPITALS NHS FT ,Nov-22,Contractual Clinical Services,Tertiary Divisional Management & Admin,Changeology Group Ltd,INV-2210-2,"59,800.80",Project Costs 
DEPARTMENT OF HEALTH,BLACKPOOL TEACHING HOSPITALS NHS FT ,Nov-22,Contractual Clinical Services,Tertiary Divisional Management & Admin,Changeology Group Ltd,INV-2210-1,"59,782.50",Project Costs 
DEPARTMENT OF HEALTH,BLACKPOOL TEACHING HOSPITALS NHS FT ,Nov-22,Contractual Clinical Services,Contractual Clinical Services,CHS Healthcare,INV027686,"39,600.00",Contractual Clinical Services
DEPARTMENT OF HEALTH,BLACKPOOL TEACHING HOSPITALS NHS FT ,Nov-22,Contractual Clinical Services,Contractual Clinical Services,East Lancashire Hospitals NHS Trust,E0107527,"41,819.00",Bowel Cancer Screening
DEPARTMENT OF HEALTH,BLACKPOOL TEACHING HOSPITALS NHS FT ,Nov-22,Contractual Clinical Services,Contractual Clinical Services,East Lancashire Hospitals NHS Trust,E0107458,"41,819.00",Bowel Cancer Screening
DEPARTMENT OF HEALTH,BLACKPOOL TEACHING HOSPITALS NHS FT ,Nov-22,Corporate ,Corporate ,Ethical Healthcare Consulting C.I.C.,516,"133,310.40",Project Costs 
DEPARTMENT OF HEALTH,BLACKPOOL TEACHING HOSPITALS NHS FT ,Nov-22,Facilities Management ,Soft FM ,Express Launderers,4533,"81,600.00",Laundry / Linen Tender
DEPARTMENT OF HEALTH,BLACKPOOL TEACHING HOSPITALS NHS FT ,Nov-22,Facilities Management ,Soft FM ,Express Launderers,4535,"38,518.23",Laundry / Linen Tender
DEPARTMENT OF HEALTH,BLACKPOOL TEACHING HOSPITALS NHS FT ,Nov-22,Facilities Management ,Soft FM ,Express Launderers,4536,"81,600.00",Laundry / Linen Tender
DEPARTMENT OF HEALTH,BLACKPOOL TEACHING HOSPITALS NHS FT ,Nov-22,Facilities Management ,Soft FM ,Express Launderers,4537,"81,600.00",Laundry / Linen Tender
DEPARTMENT OF HEALTH,BLACKPOOL TEACHING HOSPITALS NHS FT ,Nov-22,Facilities Management ,Soft FM ,Express Launderers,4538,"41,497.63",Laundry / Linen Tender
DEPARTMENT OF HEALTH,BLACKPOOL TEACHING HOSPITALS NHS FT ,Nov-22,Contractual Clinical Services,General Haematology,Genmed.me Ltd,20447,"186,855.05",Laboratory Reagents
DEPARTMENT OF HEALTH,BLACKPOOL TEACHING HOSPITALS NHS FT ,Nov-22,Contractual Clinical Services,Contractual Clinical Services,Haag-Streit Uk Ltd,SI30038031,"47,978.70",Surgical Instruments
DEPARTMENT OF HEALTH,BLACKPOOL TEACHING HOSPITALS NHS FT ,Nov-22,Contractual Clinical Services,Ultrasound,Independent Vascular Services Ltd,INV-9315,"61,500.00",Contractual Clinical Services
DEPARTMENT OF HEALTH,BLACKPOOL TEACHING HOSPITALS NHS FT ,Nov-22,Contractual Clinical Services,Admin - Pathology,Lancashire Teaching Hospitals NHS Foundation Trust,15361759,"41,190.98",Laboratory External Tests
DEPARTMENT OF HEALTH,BLACKPOOL TEACHING HOSPITALS NHS FT ,Nov-22,Corporate ,Corporate ,Layton Medical Centre,Nova.11,"48,652.59",Research And Development
DEPARTMENT OF HEALTH,BLACKPOOL TEACHING HOSPITALS NHS FT ,Nov-22,Corporate ,Finance ,Liaison,82131,"51,872.60",External Consultancy Fees
DEPARTMENT OF HEALTH,BLACKPOOL TEACHING HOSPITALS NHS FT ,Nov-22,Contractual Clinical Services,Gynae & Colpo Clinics,Medtronic Ltd,1205226563,"55,080.00",Med Surg Eqpt General
DEPARTMENT OF HEALTH,BLACKPOOL TEACHING HOSPITALS NHS FT ,Nov-22,Contractual Clinical Services,Gynae & Colpo Clinics,Medtronic Ltd,1205222689,"40,791.84",Med Surg Eqpt General
DEPARTMENT OF HEALTH,BLACKPOOL TEACHING HOSPITALS NHS FT ,Nov-22,Contractual Clinical Services,Patient Flow,Mersey Medical Services Ltd,INV-1486,"67,705.00",Transport Costs
DEPARTMENT OF HEALTH,BLACKPOOL TEACHING HOSPITALS NHS FT ,Nov-22,Computer Software / License  Fees,Finance,Northumbria Healthcare NHS Foundation Trust,7550002195,"152,625.00",Computer Software / License  Fees
DEPARTMENT OF HEALTH,BLACKPOOL TEACHING HOSPITALS NHS FT ,Nov-22,Contractual Clinical Services,Gastro Unit,Remedy Healthcare Solutions Ltd,BP0016,"29,150.00",Contractual Clinical Services
DEPARTMENT OF HEALTH,BLACKPOOL TEACHING HOSPITALS NHS FT ,Nov-22,Contractual Clinical Services,Contractual Clinical Services,Siemens Healthcare Diagnostics Ltd,114860951,"103,175.96",Laboratory Equipment
DEPARTMENT OF HEALTH,BLACKPOOL TEACHING HOSPITALS NHS FT ,Nov-22,Facilities Management ,Digital Identity,Sitekit Applications Ltd,1261,"51,300.00",Project Costs 
DEPARTMENT OF HEALTH,BLACKPOOL TEACHING HOSPITALS NHS FT ,Nov-22,Facilities Management ,Soft FM ,Srcl Ltd,0001764453,"28,901.88",Refuse & Clinical Waste
DEPARTMENT OF HEALTH,BLACKPOOL TEACHING HOSPITALS NHS FT ,Nov-22,Multi-Divisional charge ,Multi-Divisional charge ,Retinue Solutions Ltd,8294,282549.25,Multi-Divisional charge 
DEPARTMENT OF HEALTH,BLACKPOOL TEACHING HOSPITALS NHS FT ,Nov-22,Multi-Divisional charge ,Multi-Divisional charge ,Retinue Solutions Ltd,8247,449637.37,Multi-Divisional charge 
DEPARTMENT OF HEALTH,BLACKPOOL TEACHING HOSPITALS NHS FT ,Nov-22,Multi-Divisional charge ,Multi-Divisional charge ,Retinue Solutions Ltd,8246,246426.17,Multi-Divisional charge 
DEPARTMENT OF HEALTH,BLACKPOOL TEACHING HOSPITALS NHS FT ,Nov-22,Multi-Divisional charge ,Multi-Divisional charge ,Retinue Solutions Ltd,8336,436660.6,Multi-Divisional charge 
DEPARTMENT OF HEALTH,BLACKPOOL TEACHING HOSPITALS NHS FT ,Nov-22,Multi-Divisional charge ,Multi-Divisional charge ,Retinue Solutions Ltd,8338,264574.09,Multi-Divisional charge 
DEPARTMENT OF HEALTH,BLACKPOOL TEACHING HOSPITALS NHS FT ,Nov-22,Multi-Divisional charge ,Multi-Divisional charge ,Retinue Solutions Ltd,8293,429923.35,Multi-Divisional charge 
DEPARTMENT OF HEALTH,BLACKPOOL TEACHING HOSPITALS NHS FT ,Nov-22,Multi-Divisional charge ,Multi-Divisional charge ,Retinue Solutions Ltd,8385,380820.78,Multi-Divisional charge 
DEPARTMENT OF HEALTH,BLACKPOOL TEACHING HOSPITALS NHS FT ,Nov-22,Multi-Divisional charge ,Multi-Divisional charge ,Retinue Solutions Ltd,8386,266138.92,Multi-Divisional charge 
DEPARTMENT OF HEALTH,BLACKPOOL TEACHING HOSPITALS NHS FT ,Nov-22,Multi-Divisional charge ,Multi-Divisional charge ,Retinue Solutions Ltd,8435,441335.46,Multi-Divisional charge 
DEPARTMENT OF HEALTH,BLACKPOOL TEACHING HOSPITALS NHS FT ,Nov-22,Multi-Divisional charge ,Multi-Divisional charge ,Retinue Solutions Ltd,8436,250371.4,Multi-Divisional charge 
DEPARTMENT OF HEALTH,BLACKPOOL TEACHING HOSPITALS NHS FT ,Nov-22,Multi-Divisional charge ,Multi-Divisional charge ,Retinue Solutions Ltd,8480,407756.23,Multi-Divisional charge 
DEPARTMENT OF HEALTH,BLACKPOOL TEACHING HOSPITALS NHS FT ,Nov-22,Multi-Divisional charge ,Multi-Divisional charge ,Retinue Solutions Ltd,8154,536321.41,Multi-Divisional charge 
DEPARTMENT OF HEALTH,BLACKPOOL TEACHING HOSPITALS NHS FT ,Nov-22,Multi-Divisional charge ,Multi-Divisional charge ,Retinue Solutions Ltd,8202,237085.52,Multi-Divisional charge 
DEPARTMENT OF HEALTH,BLACKPOOL TEACHING HOSPITALS NHS FT ,Nov-22,Multi-Divisional charge ,Multi-Divisional charge ,Retinue Solutions Ltd,8201,383198.76,Multi-Divisional charge 
DEPARTMENT OF HEALTH,BLACKPOOL TEACHING HOSPITALS NHS FT ,Nov-22,Facilities ,Ict Managed Print,Canon (UK) Ltd,2208800101827,"44,569.22",Photocopying Rental And Charges
DEPARTMENT OF HEALTH,BLACKPOOL TEACHING HOSPITALS NHS FT ,Nov-22,Facilities ,Ict Managed Print,Canon (UK) Ltd,2208800101828,"71,575.74",Photocopying Rental And Charges
DEPARTMENT OF HEALTH,BLACKPOOL TEACHING HOSPITALS NHS FT ,Nov-22,Facilities ,Ict Managed Print,Canon (UK) Ltd,2208800052171,"73,592.50",Photocopying Rental And Charges
DEPARTMENT OF HEALTH,BLACKPOOL TEACHING HOSPITALS NHS FT ,Nov-22,Corporate ,Procurement ,East Lancashire Hospitals NHS Trust,E0108029,"29,960.00",Procurment Recharges 
DEPARTMENT OF HEALTH,BLACKPOOL TEACHING HOSPITALS NHS FT ,Nov-22,Corporate ,ICS Collaboration,Lancashire Teaching Hospitals NHS Foundation Trust,15360337,"200,000.00",Project Costs 
DEPARTMENT OF HEALTH,BLACKPOOL TEACHING HOSPITALS NHS FT ,Nov-22,Families and Integrated Community Care ,Blackpool District Nursing,Medstrom Ltd,134203,"31,053.44",Bed Rentals 
DEPARTMENT OF HEALTH,BLACKPOOL TEACHING HOSPITALS NHS FT ,Nov-22,Multi-Divisional charge ,Multi-Divisional charge ,NHS Supply Chain Co-ordination Limited,9523000777,"43,652.83",NHS Supply Chain Catalogue items
DEPARTMENT OF HEALTH,BLACKPOOL TEACHING HOSPITALS NHS FT ,Nov-22,Capital Purchases,Capital Purchases,Rider Hunt,2407A/7024,"32,036.40",Capital Purchases
DEPARTMENT OF HEALTH,BLACKPOOL TEACHING HOSPITALS NHS FT ,Nov-22,Capital Purchases,Capital Purchases,D & G Builders & Joiners Ltd,54271,"35,354.27",Capital Purchases
DEPARTMENT OF HEALTH,BLACKPOOL TEACHING HOSPITALS NHS FT ,Nov-22,Capital Purchases,Capital Purchases,D & G Builders & Joiners Ltd,54280,"67,699.13",Capital Purchases
DEPARTMENT OF HEALTH,BLACKPOOL TEACHING HOSPITALS NHS FT ,Nov-22,Capital Purchases,Capital Purchases,The James Mercer Group Ltd,JM/JD/C5619,"103,907.34",Capital Purchases
DEPARTMENT OF HEALTH,BLACKPOOL TEACHING HOSPITALS NHS FT ,Nov-22,Capital Purchases,Capital Purchases,D & G Builders & Joiners Ltd,54275,"61,372.85",Capital Purchases
DEPARTMENT OF HEALTH,BLACKPOOL TEACHING HOSPITALS NHS FT ,Nov-22,Capital Purchases,Capital Purchases,Integrated Medical Solutions Ltd,SIN602857,"29,337.60",Capital Purchases
DEPARTMENT OF HEALTH,BLACKPOOL TEACHING HOSPITALS NHS FT ,Nov-22,Capital Purchases,Capital Purchases,Integrated Medical Solutions Ltd,SIN602846,"29,337.60",Capital Purchases
DEPARTMENT OF HEALTH,BLACKPOOL TEACHING HOSPITALS NHS FT ,Nov-22,Capital Purchases,Capital Purchases,Oituk Ltd,82824,"68,415.00",Capital Purchases
DEPARTMENT OF HEALTH,BLACKPOOL TEACHING HOSPITALS NHS FT ,Nov-22,Pharmacy Drugs Inventory ,Pharmacy Drugs Inventory ,Baxter Healthcare Ltd,22275383,"59,117.28",Pharmacy Drugs Inventory 
DEPARTMENT OF HEALTH,BLACKPOOL TEACHING HOSPITALS NHS FT ,Nov-22,Pharmacy Drugs Inventory ,Pharmacy Drugs Inventory ,Novartis Pharmaceuticals Uk Ltd,92682679,"48,971.40",Pharmacy Drugs Inventory 
DEPARTMENT OF HEALTH,BLACKPOOL TEACHING HOSPITALS NHS FT ,Nov-22,Pharmacy Drugs Inventory ,Pharmacy Drugs Inventory ,Alloga Uk Ltd,SIN103615013,"27,000.00",Pharmacy Drugs Inventory 
DEPARTMENT OF HEALTH,BLACKPOOL TEACHING HOSPITALS NHS FT ,Nov-22,Pharmacy Drugs Inventory ,Pharmacy Drugs Inventory ,Baxter Healthcare Ltd,22286475,"59,117.28",Pharmacy Drugs Inventory 
DEPARTMENT OF HEALTH,BLACKPOOL TEACHING HOSPITALS NHS FT ,Nov-22,Pharmacy Drugs Inventory ,Pharmacy Drugs Inventory ,Janssen-Cilag Ltd,930891797,"35,778.00",Pharmacy Drugs Inventory 
DEPARTMENT OF HEALTH,BLACKPOOL TEACHING HOSPITALS NHS FT ,Nov-22,Pharmacy Drugs Inventory ,Pharmacy Drugs Inventory ,Roche Products Ltd,1322258474,"57,019.33",Pharmacy Drugs Inventory 
DEPARTMENT OF HEALTH,BLACKPOOL TEACHING HOSPITALS NHS FT ,Nov-22,Pharmacy Drugs Inventory ,Pharmacy Drugs Inventory ,Bayer Plc,824C451905,"72,996.48",Pharmacy Drugs Inventory 
DEPARTMENT OF HEALTH,BLACKPOOL TEACHING HOSPITALS NHS FT ,Nov-22,Pharmacy Drugs Inventory ,Pharmacy Drugs Inventory ,Novartis Pharmaceuticals Uk Ltd,92683951,"67,206.00",Pharmacy Drugs Inventory 
DEPARTMENT OF HEALTH,BLACKPOOL TEACHING HOSPITALS NHS FT ,Nov-22,Pharmacy Drugs Inventory ,Pharmacy Drugs Inventory ,Baxter Healthcare Ltd,22288205,"58,792.32",Pharmacy Drugs Inventory 
DEPARTMENT OF HEALTH,BLACKPOOL TEACHING HOSPITALS NHS FT ,Nov-22,Pharmacy Drugs Inventory ,Pharmacy Drugs Inventory ,Bayer Plc,824C453051,"68,434.20",Pharmacy Drugs Inventory 
DEPARTMENT OF HEALTH,BLACKPOOL TEACHING HOSPITALS NHS FT ,Nov-22,Pharmacy Drugs Inventory ,Pharmacy Drugs Inventory ,Bristol Myers Squibb Pharmaceuticals Ltd,100695943,"42,661.14",Pharmacy Drugs Inventory 
DEPARTMENT OF HEALTH,BLACKPOOL TEACHING HOSPITALS NHS FT ,Nov-22,Pharmacy Drugs Inventory ,Pharmacy Drugs Inventory ,Janssen-Cilag Ltd,930893497,"38,154.24",Pharmacy Drugs Inventory 
DEPARTMENT OF HEALTH,BLACKPOOL TEACHING HOSPITALS NHS FT ,Nov-22,Pharmacy Drugs Inventory ,Pharmacy Drugs Inventory ,Roche Products Ltd,1322259163,"52,090.93",Pharmacy Drugs Inventory 
DEPARTMENT OF HEALTH,BLACKPOOL TEACHING HOSPITALS NHS FT ,Nov-22,Pharmacy Drugs Inventory ,Pharmacy Drugs Inventory ,Bayer Plc,824C454258,"86,683.32",Pharmacy Drugs Inventory 
DEPARTMENT OF HEALTH,BLACKPOOL TEACHING HOSPITALS NHS FT ,Nov-22,Pharmacy Drugs Inventory ,Pharmacy Drugs Inventory ,Baxter Healthcare Ltd,22298488,"58,792.32",Pharmacy Drugs Inventory 
DEPARTMENT OF HEALTH,BLACKPOOL TEACHING HOSPITALS NHS FT ,Nov-22,Pharmacy Drugs Inventory ,Pharmacy Drugs Inventory ,Bristol Myers Squibb Pharmaceuticals Ltd,100696823,"54,360.62",Pharmacy Drugs Inventory 
DEPARTMENT OF HEALTH,BLACKPOOL TEACHING HOSPITALS NHS FT ,Nov-22,Pharmacy Drugs Inventory ,Pharmacy Drugs Inventory ,Janssen-Cilag Ltd,930894621,"47,692.80",Pharmacy Drugs Inventory 
DEPARTMENT OF HEALTH,BLACKPOOL TEACHING HOSPITALS NHS FT ,Nov-22,Pharmacy Drugs Inventory ,Pharmacy Drugs Inventory ,Roche Products Ltd,1322259892,"41,721.18",Pharmacy Drugs Inventory 
DEPARTMENT OF HEALTH,BLACKPOOL TEACHING HOSPITALS NHS FT ,Nov-22,Pharmacy Drugs Inventory ,Pharmacy Drugs Inventory ,Baxter Healthcare Ltd,22300679,"58,792.32",Pharmacy Drugs Inventory 
DEPARTMENT OF HEALTH,BLACKPOOL TEACHING HOSPITALS NHS FT ,Nov-22,Pharmacy Drugs Inventory ,Pharmacy Drugs Inventory ,Lloyds Pharmacy Ltd,0000111201,"989,060.25",Pharmacy Drugs Inventory 
DEPARTMENT OF HEALTH,BLACKPOOL TEACHING HOSPITALS NHS FT ,Nov-22,Multi-Divisional charge ,Multi-Divisional charge ,St Helens and Knowsley Hospital Services NHS Trust,16817711,"800,000.00",Inter NHS Medical staff recharges
DEPARTMENT OF HEALTH,BLACKPOOL TEACHING HOSPITALS NHS FT ,Nov-22,Multi-Divisional charge ,Multi-Divisional charge ,NHS Supply Chain Co-ordination Limited,1123175568,"217,339.01",NHS Supply Chain Catalogue items
DEPARTMENT OF HEALTH,BLACKPOOL TEACHING HOSPITALS NHS FT ,Nov-22,Multi-Divisional charge ,Multi-Divisional charge ,NHS Supply Chain Co-ordination Limited,1123169421,"212,715.49",NHS Supply Chain Catalogue items
DEPARTMENT OF HEALTH,BLACKPOOL TEACHING HOSPITALS NHS FT ,Nov-22,Multi-Divisional charge ,Multi-Divisional charge ,NHS Supply Chain Co-ordination Limited,1123182426,"177,645.71",NHS Supply Chain Catalogue items
